[Event "Fast Chess"]
[Site "ChessKid.com"]
[Date "2020.04.19"]
[Round "1"]
[White "Li, Tobias"]
[Black "Sasse, Gabriel"]
[Result "1-0"]
[ECO "C50"]
[WhiteElo "1331"]
[BlackElo "1258"]
[PlyCount "107"]
[EventDate "2020.??.??"]
[TimeControl "180"]
[WhiteClock "0:00:02"]
[BlackClock "0:00:09"]

1. e4 {[%emt 0:00:01]} e5 {[%emt 0:00:01]} 2. Nf3 {[%emt 0:00:02]} Nc6 {
[%emt 0:00:00]} 3. Nc3 {[%emt 0:00:00]} Bc5 {[%emt 0:00:02]} 4. Bc4 {[%emt 0:
00:01]} h6 {[%emt 0:00:03]} 5. O-O {[%emt 0:00:02]} Nf6 {[%emt 0:00:00]} 6. h3
{[%emt 0:00:01]} O-O {[%emt 0:00:01]} 7. d3 {[%emt 0:00:02]} d6 {[%emt 0:00:00]
} 8. a3 {[%emt 0:00:09]} a6 {[%emt 0:00:05]} 9. b4 {[%emt 0:00:03]} b5 {
[%emt 0:00:03]} 10. bxc5 {[%emt 0:00:02]} bxc4 {[%emt 0:00:00]} 11. cxd6 {
[%emt 0:00:03]} Qxd6 {[%emt 0:00:04]} 12. dxc4 {[%emt 0:00:03]} Qxd1 {[%emt 0:
00:04]} 13. Rxd1 {[%emt 0:00:02]} Be6 {[%emt 0:00:06]} 14. c5 {[%emt 0:00:10]}
Rfd8 {[%emt 0:00:01]} 15. Rxd8+ {[%emt 0:00:04]} Rxd8 {[%emt 0:00:01]} 16. Be3
{[%emt 0:00:02]} Rd7 {[%emt 0:00:18]} 17. Rb1 {[%emt 0:00:19]} Ne8 {[%emt 0:00:
12]} 18. Rd1 {[%emt 0:00:10]} Rxd1+ {[%emt 0:00:03]} 19. Nxd1 {[%emt 0:00:02]}
Nf6 {[%emt 0:00:01]} 20. Nc3 {[%emt 0:00:02]} Na5 {[%emt 0:00:03]} 21. a4 {
[%emt 0:00:21]} Nc4 {[%emt 0:00:02]} 22. Bc1 {[%emt 0:00:03]} c6 {[%emt 0:00:
08]} 23. Kf1 {[%emt 0:00:06]} Na5 {[%emt 0:00:09]} 24. Ke2 {[%emt 0:00:05]} Nb7
{[%emt 0:00:02]} 25. Ba3 {[%emt 0:00:06]} Bc4+ {[%emt 0:00:07]} 26. Ke3 {
[%emt 0:00:02]} Be6 {[%emt 0:00:13]} 27. Nxe5 {[%emt 0:00:02]} Bc8 {[%emt 0:00:
05]} 28. Kd4 {[%emt 0:00:02]} Nd8 {[%emt 0:00:05]} 29. f4 {[%emt 0:00:04]} Ne6+
{[%emt 0:00:02]} 30. Ke3 {[%emt 0:00:04]} Bb7 {[%emt 0:00:08]} 31. f5 {[%emt 0:
00:01]} Nd8 {[%emt 0:00:03]} 32. Nc4 {[%emt 0:00:02]} g6 {[%emt 0:00:06]} 33.
fxg6 {[%emt 0:00:02]} fxg6 {[%emt 0:00:01]} 34. Kf4 {[%emt 0:00:01]} g5+ {
[%emt 0:00:03]} 35. Kf5 {[%emt 0:00:01]} Ne8 {[%emt 0:00:02]} 36. e5 {[%emt 0:
00:02]} Ng7+ {[%emt 0:00:07]} 37. Kf6 {[%emt 0:00:01]} Kf8 {[%emt 0:00:03]} 38.
Nd6 {[%emt 0:00:02]} Nde6 {[%emt 0:00:03]} 39. Nxb7 {[%emt 0:00:03]} Nd4 {
[%emt 0:00:01]} 40. Bb2 {[%emt 0:00:06]} Nxc2 {[%emt 0:00:01]} 41. Ne4 {
[%emt 0:00:05]} Ne3 {[%emt 0:00:04]} 42. Kg6 {[%emt 0:00:02]} Nef5 {[%emt 0:00:
01]} 43. Kf6 {[%emt 0:00:02]} h5 {[%emt 0:00:03]} 44. e6 {[%emt 0:00:01]} Nxe6
{[%emt 0:00:03]} 45. Nxg5 {[%emt 0:00:01]} Nf4 {[%emt 0:00:03]} 46. Kxf5 {
[%emt 0:00:02]} Ke8 {[%emt 0:00:01]} 47. Kxf4 {[%emt 0:00:01]} Kd7 {[%emt 0:00:
01]} 48. g4 {[%emt 0:00:01]} Kc7 {[%emt 0:00:01]} 49. gxh5 {[%emt 0:00:01]}
Kxb7 {[%emt 0:00:01]} 50. h6 {[%emt 0:00:00]} Kc7 {[%emt 0:00:01]} 51. h7 {
[%emt 0:00:00]} Kd7 {[%emt 0:00:01]} 52. h8=Q {[%emt 0:00:00]} Kc7 {[%emt 0:00:
02]} 53. Qf6 {[%emt 0:00:00]} Kd7 {[%emt 0:00:01]} 54. Qe7+ {[%emt 0:00:00]
OnlyHungryKiwi won on time} 1-0

[Event "Fast Chess"]
[Site "ChessKid.com"]
[Date "2020.04.19"]
[Round "2"]
[White "Georgiev, Maximilian"]
[Black "Li, Patrick"]
[Result "1-0"]
[ECO "C50"]
[WhiteElo "1353"]
[BlackElo "1077"]
[Annotator "Turmendspiel, Abtauschkombi"]
[PlyCount "115"]
[EventDate "2020.??.??"]
[TimeControl "180"]
[WhiteClock "0:00:15"]
[BlackClock "0:00:35"]

1. e4 {[%emt 0:00:00]} e5 {[%emt 0:00:02]} 2. Nf3 {[%emt 0:00:01]} Nc6 {
[%emt 0:00:02]} 3. Bc4 {[%emt 0:00:00]} h6 {[%emt 0:00:03]} 4. O-O {[%emt 0:00:
01]} Nf6 {[%emt 0:00:06]} 5. Nc3 {[%emt 0:00:01]} Bc5 {[%emt 0:00:04]} 6. h3 {
[%emt 0:00:02]} O-O {[%emt 0:00:07]} 7. d3 {[%emt 0:00:01]} d6 {[%emt 0:00:06]}
8. a3 {[%emt 0:00:00]} a6 {[%emt 0:00:04]} 9. b4 {[%emt 0:00:01]} b5 {[%emt 0:
00:03]} 10. bxc5 {[%emt 0:00:02]} bxc4 {[%emt 0:00:02]} 11. dxc4 {[%emt 0:00:
01]} dxc5 {[%emt 0:00:02]} 12. Qxd8 {[%emt 0:00:01]} Rxd8 {[%emt 0:00:02]} 13.
Na4 {[%emt 0:00:02]} Nd4 {[%emt 0:00:04]} 14. Nxd4 {[%emt 0:00:03]} Rxd4 {
[%emt 0:00:03]} 15. Nxc5 {[%emt 0:00:02]} Rxc4 {[%emt 0:00:05]} 16. Be3 {
[%emt 0:00:08]} Be6 {[%emt 0:00:08]} 17. Nb3 {[%emt 0:00:03]} Rxe4 {[%emt 0:00:
04]} 18. Nc5 {[%emt 0:00:04]} Rc4 {[%emt 0:00:04]} 19. Nxe6 {[%emt 0:00:01]}
fxe6 {[%emt 0:00:03]} 20. Rac1 {[%emt 0:00:03]} Rb8 {[%emt 0:00:04]} 21. Kh2 {
[%emt 0:00:05]} Rb2 {[%emt 0:00:04]} 22. c3 {[%emt 0:00:05]} Rb3 {[%emt 0:00:
03]} 23. Ba7 {[%emt 0:00:09]} Rbxc3 {[%emt 0:00:02]} 24. Rxc3 {[%emt 0:00:00]}
Rxc3 {[%emt 0:00:02]} 25. Ra1 {[%emt 0:00:02]} Rc2 {[%emt 0:00:03]} 26. a4 {
[%emt 0:00:04]} Ne4 {[%emt 0:00:02]} 27. Be3 {[%emt 0:00:04]} Nxf2 {[%emt 0:00:
05]} 28. Bxf2 {[%emt 0:00:01]} Rxf2 {[%emt 0:00:02]} 29. Kg3 {[%emt 0:00:00]}
Rd2 {[%emt 0:00:04]} 30. a5 {[%emt 0:00:02]} e4 {[%emt 0:00:03]} 31. Re1 {
[%emt 0:00:04]} Rd3+ {[%emt 0:00:04]} 32. Kf4 {[%emt 0:00:03]} e3 {[%emt 0:00:
01]} 33. Rxe3 {[%emt 0:00:03]} Rd4+ {[%emt 0:00:05]} 34. Kf3 {[%emt 0:00:03]}
Ra4 {[%emt 0:00:04]} 35. Rxe6 {[%emt 0:00:03]} Rxa5 {[%emt 0:00:01]} 36. Ke3 {
[%emt 0:00:05]} Ra3+ {[%emt 0:00:02]} 37. Kd4 {[%emt 0:00:02]} Ra4+ {[%emt 0:
00:02]} 38. Kc3 {[%emt 0:00:02]} Ra3+ {[%emt 0:00:05]} 39. Kb4 {[%emt 0:00:01]}
Ra1 {[%emt 0:00:02]} 40. Kb3 {[%emt 0:00:03]} Rb1+ {[%emt 0:00:02]} 41. Ka2 {
[%emt 0:00:02]} Rb7 {[%emt 0:00:04]} 42. Rxa6 {[%emt 0:00:03]} Rb8 {[%emt 0:00:
03]} 43. Rc6 {[%emt 0:00:05]} Ra8+ {[%emt 0:00:03]} 44. Kb3 {[%emt 0:00:01]}
Rb8+ {[%emt 0:00:00]} 45. Kc4 {[%emt 0:00:02]} Ra8 {[%emt 0:00:03]} 46. Rxc7 {
[%emt 0:00:01]} Ra1 {[%emt 0:00:01]} 47. Rc8+ {[%emt 0:00:03]} Kh7 {[%emt 0:00:
03]} 48. g3 {[%emt 0:00:02]} Rg1 {[%emt 0:00:02]} 49. g4 {[%emt 0:00:06]} Rh1 {
[%emt 0:00:03]} 50. Kd5 {[%emt 0:00:03]} Rxh3 {[%emt 0:00:03]} 51. Rc6 {
[%emt 0:00:02]} Rg3 {[%emt 0:00:00]} 52. Rc4 {[%emt 0:00:01]} Rxg4 {[%emt 0:00:
01]} 53. Rxg4 {[%emt 0:00:02]} h5 {[%emt 0:00:00]} 54. Rh4 {[%emt 0:00:02]} Kh6
{[%emt 0:00:01]} 55. Ke5 {[%emt 0:00:02]} Kh7 {[%emt 0:00:01]} 56. Rxh5+ {
[%emt 0:00:02]} Kg8 {[%emt 0:00:02]} 57. Ke6 {[%emt 0:00:06]} Kf8 {[%emt 0:00:
01]} 58. Rh8# {[%emt 0:00:03] TallSnazzyBall won by checkmate} 1-0

[Event "Fast Chess"]
[Site "ChessKid.com"]
[Date "2020.04.19"]
[Round "2"]
[White "Dai, Lana"]
[Black "Li, Tobias"]
[Result "0-1"]
[ECO "C50"]
[WhiteElo "1266"]
[BlackElo "1338"]
[PlyCount "76"]
[EventDate "2020.??.??"]
[TimeControl "180"]
[WhiteClock "0:00:47"]
[BlackClock "0:00:02"]

1. e4 {[%emt 0:00:04]} e5 {[%emt 0:00:03]} 2. Nf3 {[%emt 0:00:02]} Nc6 {
[%emt 0:00:01]} 3. Nc3 {[%emt 0:00:01]} Bc5 {[%emt 0:00:02]} 4. a3 {[%emt 0:00:
04]} Nf6 {[%emt 0:00:00]} 5. Bc4 {[%emt 0:00:01]} O-O {[%emt 0:00:02]} 6. h3 {
[%emt 0:00:01]} h6 {[%emt 0:00:02]} 7. d3 {[%emt 0:00:01]} d6 {[%emt 0:00:02]}
8. O-O {[%emt 0:00:01]} a6 {[%emt 0:00:01]} 9. Nd5 {[%emt 0:00:05]} Nxd5 {
[%emt 0:00:04]} 10. Bxd5 {[%emt 0:00:02]} Bd7 {[%emt 0:00:02]} 11. Bxc6 {
[%emt 0:00:01]} Bxc6 {[%emt 0:00:01]} 12. c4 {[%emt 0:00:04]} b5 {[%emt 0:00:
05]} 13. cxb5 {[%emt 0:00:02]} axb5 {[%emt 0:00:01]} 14. Bd2 {[%emt 0:00:11]}
Re8 {[%emt 0:00:07]} 15. Bc3 {[%emt 0:00:07]} Bb6 {[%emt 0:00:07]} 16. d4 {
[%emt 0:00:02]} exd4 {[%emt 0:00:01]} 17. Nxd4 {[%emt 0:00:01]} Rxe4 $4 {
[%emt 0:00:02]} 18. Nxc6 {[%emt 0:00:04]} Qd7 {[%emt 0:00:05]} 19. Nb4 {
[%emt 0:00:20]} Ba5 {[%emt 0:00:04]} 20. f3 {[%emt 0:00:11]} Rf4 {[%emt 0:00:
03]} 21. Bd2 {[%emt 0:00:07]} Rd4 {[%emt 0:00:06]} 22. Qe2 {[%emt 0:00:09]}
Bxb4 {[%emt 0:00:02]} 23. Bxb4 {[%emt 0:00:04]} Ra4 {[%emt 0:00:05]} 24. Bc3 {
[%emt 0:00:17]} Rf4 {[%emt 0:00:04]} 25. Bd2 {[%emt 0:00:05]} Rfd4 {[%emt 0:00:
02]} 26. Bc3 {[%emt 0:00:02]} Rf4 {[%emt 0:00:02]} 27. Bd2 {[%emt 0:00:00]} Rf6
{[%emt 0:00:00]} 28. Bc3 {[%emt 0:00:01]} Re6 {[%emt 0:00:02]} 29. Qd2 {
[%emt 0:00:05]} Re8 {[%emt 0:00:06]} 30. Qd3 {[%emt 0:00:04]} Qe6 {[%emt 0:00:
07]} 31. Qxb5 {[%emt 0:00:11]} Raa8 {[%emt 0:00:01]} 32. Qc6 {[%emt 0:00:07]}
Qe3+ {[%emt 0:00:08]} 33. Kh1 {[%emt 0:00:04]} Qa7 {[%emt 0:00:03]} 34. Qd7 {
[%emt 0:00:04]} Qb7 {[%emt 0:00:03]} 35. Qf5 {[%emt 0:00:06]} Re6 {[%emt 0:00:
15]} 36. Qd3 {[%emt 0:00:05]} Qb6 {[%emt 0:00:07]} 37. Qc4 {[%emt 0:00:02]} Qc5
{[%emt 0:00:04]} 38. Qxc5 {[%emt 0:00:01]} dxc5 {[%emt 0:00:01] OnlyHungryKiwi
won on time} 0-1

[Event "Fast Chess"]
[Site "ChessKid.com"]
[Date "2020.04.19"]
[Round "3"]
[White "Li, Tobias"]
[Black "Georgiev, Maximilian"]
[Result "1-0"]
[ECO "B01"]
[WhiteElo "1347"]
[BlackElo "1345"]
[Annotator "Turmendspiel"]
[PlyCount "113"]
[EventDate "2020.??.??"]
[TimeControl "180"]
[BlackClock "0:00:02"]

1. e4 {[%emt 0:00:00]} d5 {[%emt 0:00:01]} 2. Nf3 {[%emt 0:00:01]} dxe4 {
[%emt 0:00:02]} 3. Ng5 {[%emt 0:00:01]} Nf6 {[%emt 0:00:02]} 4. Nc3 {[%emt 0:
00:04]} Bf5 {[%emt 0:00:05]} 5. d3 {[%emt 0:00:11]} exd3 {[%emt 0:00:03]} 6.
Bxd3 {[%emt 0:00:02]} Bxd3 {[%emt 0:00:01]} 7. Qxd3 {[%emt 0:00:03]} e6 {
[%emt 0:00:05]} 8. Qxd8+ {[%emt 0:00:03]} Kxd8 {[%emt 0:00:01]} 9. O-O {
[%emt 0:00:01]} Ke7 {[%emt 0:00:03]} 10. Bf4 {[%emt 0:00:05]} Na6 {[%emt 0:00:
03]} 11. Nf3 {[%emt 0:00:06]} Ke8 {[%emt 0:00:03]} 12. Nb5 {[%emt 0:00:02]} Be7
{[%emt 0:00:05]} 13. Nxc7+ {[%emt 0:00:03]} Nxc7 {[%emt 0:00:04]} 14. Bxc7 {
[%emt 0:00:02]} Rc8 {[%emt 0:00:02]} 15. Be5 {[%emt 0:00:09]} Rxc2 {[%emt 0:00:
02]} 16. Bd4 {[%emt 0:00:02]} Rc4 {[%emt 0:00:03]} 17. Bxa7 {[%emt 0:00:03]}
Rb4 {[%emt 0:00:06]} 18. Bd4 {[%emt 0:00:02]} Kd7 {[%emt 0:00:05]} 19. Rfd1 {
[%emt 0:00:02]} Kc7 {[%emt 0:00:05]} 20. Rdc1+ {[%emt 0:00:04]} Kb8 {[%emt 0:
00:02]} 21. Be5+ {[%emt 0:00:03]} Ka7 {[%emt 0:00:02]} 22. Bc3 {[%emt 0:00:11]}
Rf4 {[%emt 0:00:04]} 23. Be5 {[%emt 0:00:03]} Rf5 {[%emt 0:00:05]} 24. Bd4+ {
[%emt 0:00:04]} Kb8 {[%emt 0:00:06]} 25. Be5+ {[%emt 0:00:02]} Ka8 {[%emt 0:00:
02]} 26. Rc7 {[%emt 0:00:07]} Bb4 {[%emt 0:00:07]} 27. Bxf6 {[%emt 0:00:07]}
Rxf6 {[%emt 0:00:04]} 28. Rc4 {[%emt 0:00:03]} Bd6 {[%emt 0:00:03]} 29. Rd4 {
[%emt 0:00:03]} Bc7 {[%emt 0:00:06]} 30. Rc4 {[%emt 0:00:02]} Kb8 {[%emt 0:00:
03]} 31. Rac1 {[%emt 0:00:02]} Bb6 {[%emt 0:00:06]} 32. Rb4 {[%emt 0:00:02]}
Ba5 {[%emt 0:00:05]} 33. Ra4 {[%emt 0:00:01]} Bb6 {[%emt 0:00:03]} 34. Rb4 {
[%emt 0:00:01]} Ba7 {[%emt 0:00:09]} 35. h3 {[%emt 0:00:02]} h6 {[%emt 0:00:03]
} 36. Rbc4 {[%emt 0:00:07]} g5 {[%emt 0:00:02]} 37. h4 {[%emt 0:00:03]} gxh4 {
[%emt 0:00:02]} 38. Nxh4 {[%emt 0:00:01]} Bxf2+ {[%emt 0:00:03]} 39. Kh1 {
[%emt 0:00:05]} Bxh4 {[%emt 0:00:02]} 40. Rxh4 {[%emt 0:00:02]} h5 {[%emt 0:00:
02]} 41. Rhc4 {[%emt 0:00:03]} Rf2 {[%emt 0:00:04]} 42. Rc7 {[%emt 0:00:02]}
Rxb2 {[%emt 0:00:03]} 43. Rxf7 {[%emt 0:00:01]} Rxa2 {[%emt 0:00:02]} 44. Re7 {
[%emt 0:00:01]} Ra6 {[%emt 0:00:03]} 45. Re1 {[%emt 0:00:02]} Rh6 {[%emt 0:00:
03]} 46. Re8+ {[%emt 0:00:11]} Kc7 {[%emt 0:00:03]} 47. Re7+ {[%emt 0:00:01]}
Kd8 {[%emt 0:00:02]} 48. Rf7 {[%emt 0:00:02]} Ke8 {[%emt 0:00:01]} 49. Rff1 {
[%emt 0:00:02]} h4 {[%emt 0:00:03]} 50. Ra1 {[%emt 0:00:06]} Rxa1 {[%emt 0:00:
03]} 51. Rxa1 {[%emt 0:00:01]} h3 {[%emt 0:00:02]} 52. gxh3 {[%emt 0:00:02]}
Rxh3+ {[%emt 0:00:02]} 53. Kg2 {[%emt 0:00:00]} Rh6 {[%emt 0:00:02]} 54. Ra7 {
[%emt 0:00:03]} Rh7 {[%emt 0:00:03]} 55. Kf3 {[%emt 0:00:01]} e5 {[%emt 0:00:
02]} 56. Ke4 {[%emt 0:00:01]} Kd8 {[%emt 0:00:01]} 57. Kxe5 {[%emt 0:00:02]
OnlyHungryKiwi won on time} 1-0

[Event "Fast Chess"]
[Site "ChessKid.com"]
[Date "2020.04.19"]
[Round "3"]
[White "Sasse, Gabriel"]
[Black "Li, Patrick"]
[Result "1-0"]
[ECO "C50"]
[WhiteElo "1262"]
[BlackElo "1073"]
[PlyCount "61"]
[EventDate "2020.??.??"]
[TimeControl "180"]
[WhiteClock "0:00:32"]
[BlackClock "0:01:29"]

1. e4 {[%emt 0:00:00]} e5 {[%emt 0:00:01]} 2. Nf3 {[%emt 0:00:01]} Nc6 {
[%emt 0:00:01]} 3. Bc4 {[%emt 0:00:00]} h6 {[%emt 0:00:03]} 4. h3 {[%emt 0:00:
03]} Nf6 {[%emt 0:00:08]} 5. Nc3 {[%emt 0:00:00]} Bc5 {[%emt 0:00:08]} 6. a3 {
[%emt 0:00:02]} Nd4 {[%emt 0:00:04]} 7. Nxd4 {[%emt 0:00:02]} Bxd4 {[%emt 0:00:
03]} 8. O-O {[%emt 0:00:04]} b6 {[%emt 0:00:07]} 9. Nd5 {[%emt 0:00:03]} Nxe4 {
[%emt 0:00:07]} 10. c3 {[%emt 0:00:05]} Bc5 {[%emt 0:00:03]} 11. Qe2 {[%emt 0:
00:07]} Nd6 {[%emt 0:00:05]} 12. Qxe5+ {[%emt 0:00:04]} Kf8 {[%emt 0:00:11]}
13. d4 {[%emt 0:00:11]} Nxc4 {[%emt 0:00:04]} 14. Qe4 {[%emt 0:00:08]} Nd6 {
[%emt 0:00:04]} 15. Qf4 {[%emt 0:00:07]} g5 {[%emt 0:00:16]} 16. Qf6 {[%emt 0:
00:07]} Qxf6 {[%emt 0:00:09]} 17. Nxf6 {[%emt 0:00:01]} Ke7 {[%emt 0:00:16]}
18. dxc5 {[%emt 0:00:02]} Kxf6 {[%emt 0:00:03]} 19. cxd6 {[%emt 0:00:02]} cxd6
{[%emt 0:00:01]} 20. c4 {[%emt 0:00:03]} Re8 {[%emt 0:00:06]} 21. b3 {[%emt 0:
00:02]} Re6 {[%emt 0:00:00]} 22. Bb2+ {[%emt 0:00:01]} Re5 {[%emt 0:00:01]} 23.
Bxe5+ {[%emt 0:00:02]} dxe5 {[%emt 0:00:01]} 24. Rfe1 {[%emt 0:00:01]} Bb7 {
[%emt 0:00:02]} 25. Ra2 {[%emt 0:00:02]} Bc6 {[%emt 0:00:00]} 26. Rae2 {
[%emt 0:00:02]} d6 {[%emt 0:00:05]} 27. b4 {[%emt 0:00:02]} Ba4 {[%emt 0:00:05]
} 28. c5 {[%emt 0:00:02]} Bb5 {[%emt 0:00:08]} 29. Re3 {[%emt 0:00:03]} dxc5 {
[%emt 0:00:04]} 30. bxc5 {[%emt 0:00:02]} bxc5 {[%emt 0:00:02]} 31. Rxe5 {
[%emt 0:00:01] LimeFarActor won by resignation} 1-0

[Event "Fast Chess"]
[Site "ChessKid.com"]
[Date "2020.04.20"]
[Round "1"]
[White "Georgiev, Maximilian"]
[Black "Sasse, Gabriel"]
[Result "1-0"]
[ECO "C50"]
[WhiteElo "1357"]
[BlackElo "1247"]
[Annotator "Abtauschkombination"]
[PlyCount "95"]
[EventDate "2020.??.??"]
[TimeControl "600"]
[WhiteClock "0:06:43"]
[BlackClock "0:07:22"]

1. e4 {[%emt 0:00:00]} e5 {[%emt 0:00:02]} 2. Nf3 {[%emt 0:00:01]} Nc6 {
[%emt 0:00:01]} 3. Bc4 {[%emt 0:00:01]} Bc5 {[%emt 0:00:00]} 4. O-O {[%emt 0:
00:02]} h6 {[%emt 0:00:01]} 5. h3 {[%emt 0:00:01]} Nf6 {[%emt 0:00:00]} 6. Nc3
{[%emt 0:00:03]} O-O {[%emt 0:00:00]} 7. a3 {[%emt 0:00:02]} d6 {[%emt 0:00:01]
} 8. d3 {[%emt 0:00:01]} Ne8 {[%emt 0:00:02]} 9. b4 {[%emt 0:00:06]} Bd4 {
[%emt 0:00:05]} 10. Nxd4 {[%emt 0:00:03]} exd4 {[%emt 0:00:01]} 11. Ne2 {
[%emt 0:00:02]} Qf6 {[%emt 0:00:06]} 12. Ng3 {[%emt 0:00:05]} a6 {[%emt 0:00:
05]} 13. Bd5 {[%emt 0:00:03]} Bd7 {[%emt 0:00:06]} 14. Ba2 {[%emt 0:00:04]} b5
{[%emt 0:00:04]} 15. Bb3 {[%emt 0:00:04]} Qd8 {[%emt 0:00:00]} 16. a4 {[%emt 0:
00:02]} bxa4 {[%emt 0:00:02]} 17. Bxa4 {[%emt 0:00:01]} Nxb4 {[%emt 0:00:05]}
18. Bxd7 {[%emt 0:00:03]} Qxd7 {[%emt 0:00:01]} 19. Bd2 {[%emt 0:00:04]} Nc6 {
[%emt 0:00:02]} 20. Re1 {[%emt 0:00:05]} Nf6 {[%emt 0:00:03]} 21. Bf4 {[%emt 0:
00:04]} d5 {[%emt 0:00:05]} 22. exd5 {[%emt 0:00:02]} Nxd5 {[%emt 0:00:01]} 23.
Bc1 {[%emt 0:00:04]} Nc3 {[%emt 0:00:03]} 24. Qd2 {[%emt 0:00:05]} Rfe8 {
[%emt 0:00:09]} 25. Rxe8+ {[%emt 0:00:03]} Rxe8 {[%emt 0:00:03]} 26. Bb2 {
[%emt 0:00:02]} Ne5 {[%emt 0:00:06]} 27. Bxc3 {[%emt 0:00:04]} dxc3 {[%emt 0:
00:02]} 28. Qxc3 {[%emt 0:00:01]} Ng6 {[%emt 0:00:03]} 29. Nh5 {[%emt 0:00:05]}
f6 {[%emt 0:00:05]} 30. Ng3 {[%emt 0:00:04]} (30. Qxf6 gxf6 31. Nxf6+ Kg7 32.
Nxd7) 30... Nf4 {[%emt 0:00:04]} 31. Qc4+ {[%emt 0:00:04]} Re6 {[%emt 0:00:16]}
32. Qxf4 {[%emt 0:00:03]} Qc6 {[%emt 0:00:17]} 33. Rc1 {[%emt 0:00:09]} g5 {
[%emt 0:00:08]} 34. Qf5 {[%emt 0:00:06]} Re5 {[%emt 0:00:06]} 35. Qg4 {[%emt 0:
00:07]} Rc5 {[%emt 0:00:14]} 36. Qc8+ {[%emt 0:00:05]} Kg7 {[%emt 0:00:03]} 37.
Nh5+ {[%emt 0:00:02]} Kg6 {[%emt 0:00:02]} 38. Ng3 {[%emt 0:00:05]} Rxc2 {
[%emt 0:00:03]} 39. Rxc2 {[%emt 0:00:01]} Qxc2 {[%emt 0:00:00]} 40. Qf5+ {
[%emt 0:00:02]} Kf7 {[%emt 0:00:05]} 41. Kh2 {[%emt 0:00:06]} a5 {[%emt 0:00:
09]} 42. Qxa5 {[%emt 0:00:04]} c6 {[%emt 0:00:03]} 43. Qc7+ {[%emt 0:00:03]}
Kg6 {[%emt 0:00:05]} 44. Qd6 {[%emt 0:00:06]} c5 {[%emt 0:00:06]} 45. Ne4 {
[%emt 0:00:02]} c4 {[%emt 0:00:04]} 46. Qxf6+ {[%emt 0:00:05]} Kh5 {[%emt 0:00:
03]} 47. g4+ {[%emt 0:00:02]} Kh4 {[%emt 0:00:05]} 48. Qxh6# {[%emt 0:00:01]
TallSnazzyBall won by checkmate} 1-0

[Event "Fast Chess"]
[Site "ChessKid.com"]
[Date "2020.04.20"]
[Round "1"]
[White "Halimi, Dorian"]
[Black "Li, Tobias"]
[Result "0-1"]
[ECO "A00"]
[WhiteElo "1126"]
[BlackElo "1351"]
[Annotator "Doppelangriff, Springergabel"]
[PlyCount "48"]
[EventDate "2020.??.??"]
[TimeControl "600"]
[WhiteClock "0:07:40"]
[BlackClock "0:08:06"]

1. e3 {[%emt 0:00:02]} e5 {[%emt 0:00:02]} 2. Qh5 {[%emt 0:00:02]} Nc6 {
[%emt 0:00:04]} 3. Bc4 {[%emt 0:00:01]} g6 {[%emt 0:00:01]} 4. Qf3 {[%emt 0:00:
02]} Nf6 {[%emt 0:00:01]} 5. Nh3 {[%emt 0:00:02]} Bh6 {[%emt 0:00:09]} 6. Nc3 {
[%emt 0:00:06]} d6 {[%emt 0:00:03]} 7. Nd5 {[%emt 0:00:04]} Nxd5 {[%emt 0:00:
09]} 8. Bxd5 {[%emt 0:00:05]} O-O {[%emt 0:00:00]} 9. e4 {[%emt 0:00:11]} Nd4 {
[%emt 0:00:09]} 10. Qc3 {[%emt 0:00:07]} Be6 {[%emt 0:00:23]} 11. Bxe6 {
[%emt 0:00:04]} Nxe6 {[%emt 0:00:03]} 12. O-O {[%emt 0:00:04]} Nd4 {[%emt 0:00:
06]} 13. d3 {[%emt 0:00:05]} Ne2+ {[%emt 0:00:05]} 14. Kh1 {[%emt 0:00:08]}
Nxc3 {[%emt 0:00:01]} 15. Bxh6 {[%emt 0:00:02]} Re8 {[%emt 0:00:19]} 16. Bg5 {
[%emt 0:00:02]} Qd7 {[%emt 0:00:05]} 17. bxc3 {[%emt 0:00:03]} Qc6 {[%emt 0:00:
18]} 18. Rfb1 {[%emt 0:00:11]} Qxc3 {[%emt 0:00:03]} 19. Rxb7 {[%emt 0:00:09]}
Qxa1+ {[%emt 0:00:06]} 20. Ng1 {[%emt 0:00:03]} Rab8 {[%emt 0:00:04]} 21. Rxc7
{[%emt 0:00:06]} Rb1 {[%emt 0:00:01]} 22. h3 {[%emt 0:00:05]} Rxg1+ {[%emt 0:
00:02]} 23. Kh2 {[%emt 0:00:01]} Qf1 {[%emt 0:00:04]} 24. h4 {[%emt 0:00:11]}
Qxg2# {[%emt 0:00:02] OnlyHungryKiwi won by checkmate} 0-1

[Event "Fast Chess"]
[Site "ChessKid.com"]
[Date "2020.04.20"]
[Round "1"]
[White "Dai, Lana"]
[Black "Li, Patrick"]
[Result "1-0"]
[ECO "C50"]
[WhiteElo "1258"]
[BlackElo "1065"]
[Annotator "Doppelangriff, Springergabel"]
[PlyCount "36"]
[EventDate "2020.??.??"]
[TimeControl "600"]
[WhiteClock "0:08:36"]
[BlackClock "0:08:05"]

1. e4 {[%emt 0:00:00]} e5 {[%emt 0:00:01]} 2. Nf3 {[%emt 0:00:02]} Nc6 {
[%emt 0:00:01]} 3. Nc3 {[%emt 0:00:03]} Nf6 {[%emt 0:00:01]} 4. Bc4 {[%emt 0:
00:02]} h6 {[%emt 0:00:03]} 5. d3 {[%emt 0:00:05]} Bc5 {[%emt 0:00:02]} 6. a3 {
[%emt 0:00:02]} Ng4 {[%emt 0:00:06]} 7. O-O {[%emt 0:00:13]} Nxf2 {[%emt 0:00:
03]} 8. Rxf2 {[%emt 0:00:01]} Bxf2+ {[%emt 0:00:03]} 9. Kxf2 {[%emt 0:00:02]}
O-O {[%emt 0:00:05]} 10. Kg1 {[%emt 0:00:10]} Qe7 {[%emt 0:00:06]} 11. Nd5 {
[%emt 0:00:07]} Qc5+ {[%emt 0:00:04]} 12. Be3 {[%emt 0:00:11]} Qd6 {[%emt 0:00:
10]} 13. b4 {[%emt 0:00:27]} Qg6 {[%emt 0:00:18]} 14. Bb5 {[%emt 0:00:15]} d6 {
[%emt 0:00:00]} 15. Bxc6 {[%emt 0:00:07]} bxc6 {[%emt 0:00:08]} 16. Ne7+ {
[%emt 0:00:02]} Kh7 {[%emt 0:00:10]} 17. Nxg6 {[%emt 0:00:02]} Kxg6 {[%emt 0:
00:00]} 18. Nh4+ {[%emt 0:00:04]} Kf6 {[%emt 0:00:03] TopBrownCave won by
resignation} 1-0